fUST/lending_fUST_20250227
["ID","MTS","AMOUNT","RATE_DAILY","PERIOD"]
[354710620,1740636210502,-150.0,0.00047973,10]
[354710621,1740636210526,-345.84409534,0.00048218,2]
[354710622,1740636210551,-500.0,0.00048219,120]
[354710623,1740636210576,-500.0,0.00048219,120]
[354710624,1740636210601,-500.0,0.00048219,120]
[354710625,1740636210625,-802.97,0.00048219,120]
[354710626,1740636210650,-500.0,0.00048219,120]
[354710627,1740636210676,-500.0,0.00048219,120]
[354710628,1740636210701,-500.0,0.00048219,120]
[354710629,1740636210726,-779.63,0.00048219,120]
[354710630,1740636210751,-500.0,0.00048219,120]
[354710631,1740636210775,-623.31,0.00048219,120]
[354710632,1740636210800,-500.0,0.00048219,120]
[354710633,1740636210825,-500.0,0.00048219,120]
[354710634,1740636210849,-500.0,0.00048219,120]
[354710635,1740636210874,-500.0,0.00048219,120]
[354710636,1740636210899,-594.4492358,0.00048219,120]
[354710637,1740636210923,-500.0,0.00048219,120]
[354710638,1740636210947,-500.0,0.00048219,120]
[354710639,1740636210972,-650.57,0.00048219,120]
[354710640,1740636210996,-500.0,0.00048219,120]
[354710641,1740636211021,-500.0,0.00048219,120]
[354710642,1740636211046,-500.0,0.00048219,120]
[354710643,1740636211072,-151.0,0.00048219,120]
[354710644,1740636211097,-772.06,0.00048219,120]
[354710645,1740636211125,-840.54,0.00048219,120]
[354710646,1740636211151,-500.0,0.00048219,120]
[354710647,1740636211176,-500.0,0.00048219,120]
[354710648,1740636211201,-803.97,0.00048219,120]
[354710649,1740636211226,-151.0,0.00048219,120]
[354710650,1740636211251,-931.48,0.00048219,120]
[354710651,1740636211277,-500.0,0.00048219,120]
[354710652,1740636211302,-151.0,0.00048219,120]
[354710653,1740636211327,-1504.92,0.00048219,120]
[354710654,1740636211351,-532.87,0.00048219,120]
[354710655,1740636211377,-500.0,0.00048219,120]
[354710656,1740636211402,-500.0,0.00048219,120]
[354710657,1740636211427,-1386.51,0.00048219,120]
[354710658,1740636211452,-669.61,0.00048219,120]
[354710659,1740636211478,-500.0,0.00048219,120]
[354710660,1740636211504,-1128.4,0.00048219,120]
[354710661,1740636211529,-500.0,0.00048219,120]
[354710662,1740636211554,-500.0,0.00048219,120]
[354710663,1740636211579,-500.0,0.00048219,120]
[354710664,1740636211603,-500.0,0.00048219,120]
[354710665,1740636211627,-501.0,0.00048219,120]
[354710666,1740636211651,-500.0,0.00048219,120]
[354710667,1740636211676,-500.0,0.00048219,120]
[354710668,1740636211699,-151.0,0.00048219,120]
[354710669,1740636211724,-151.0,0.00048219,120]
[354710670,1740636211750,-500.0,0.00048219,120]
[354710671,1740636211774,-735.02,0.00048219,120]
[354710672,1740636211799,-839.98,0.00048219,120]
[354710673,1740636211826,-625.57,0.00048219,120]
[354710674,1740636211850,-500.0,0.00048219,120]
[354710675,1740636211875,-500.0,0.00048219,120]
[354710676,1740636211900,-500.0,0.00048219,120]
[354710677,1740636211924,-1634.44,0.00048219,120]
[354710678,1740636211949,-744.24,0.00048219,120]
[354710679,1740636211974,-500.0,0.00048219,120]
[354710680,1740636212000,-560.63,0.00048219,120]
[354710681,1740636212026,-500.0,0.00048219,120]
[354710682,1740636212051,-500.0,0.00048219,120]
[354710683,1740636212077,-500.0,0.00048219,120]
[354710684,1740636212102,-500.0,0.00048219,120]
[354710685,1740636212127,-664.66,0.00048219,120]
[354710686,1740636212152,-500.0,0.00048219,120]
[354710687,1740636212177,-500.0,0.00048219,120]
[354710688,1740636212202,-500.0,0.00048219,120]
[354710689,1740636212227,-795.34,0.00048219,120]
[354710690,1740636212252,-736.94,0.00048219,120]
[354710691,1740636212277,-500.0,0.00048219,120]
[354710692,1740636212302,-500.0,0.00048219,120]
[354710693,1740636212327,-669.38,0.00048219,120]
[354710694,1740636212353,-500.0,0.00048219,120]
[354710695,1740636212378,-884.52,0.00048219,120]
[354710696,1740636212404,-529.97,0.00048219,120]
[354710697,1740636212429,-500.0,0.00048219,120]
[354710698,1740636212455,-500.0,0.00048219,120]
[354710699,1740636212481,-500.0,0.00048219,120]
[354710700,1740636212509,-10140.7,0.00048219,120]
[354710701,1740636212534,-4573.11,0.00048219,120]
[354710702,1740636212558,-500.0,0.00048219,120]
[354710703,1740636212584,-606.81,0.00048219,120]
[354710704,1740636212607,-500.0,0.00048219,120]
[354710705,1740636212632,-500.0,0.00048219,120]
[354710706,1740636212657,-500.0,0.00048219,120]
[354710707,1740636212683,-620.68,0.00048219,120]
[354710708,1740636212708,-1356.3,0.00048219,120]
[354710709,1740636212734,-916.41,0.00048219,120]
[354710710,1740636212759,-500.0,0.00048219,120]
[354710711,1740636212785,-17931.29,0.00048219,120]
[354710712,1740636212811,-2325.02,0.00048219,120]
[354710713,1740636212837,-630.48,0.00048219,120]
[354710714,1740636212862,-500.0,0.00048219,120]
[354710715,1740636212888,-500.0,0.00048219,120]
[354710716,1740636212912,-232.149007,0.00048219,120]
[354710717,1740636212937,-1077.0,0.00048219,120]
[354710718,1740636212960,-6061.14,0.00048219,120]
[354710719,1740636212985,-232.149007,0.00048219,120]
[354710720,1740636213008,-863.16,0.00048219,120]
[354710721,1740636213034,-500.0,0.00048219,120]
[354710722,1740636213058,-1361.05,0.00048219,120]
[354710723,1740636213084,-500.0,0.00048219,30]
[354710724,1740636213110,-2772.83,0.00048219,120]
[354710725,1740636213135,-511.74,0.00048219,120]
[354710726,1740636213160,-500.0,0.00048219,120]
[354710727,1740636213186,-7424.48,0.00048219,3]
[354710728,1740636213213,-799.62,0.00048219,120]
[354710729,1740636213239,-500.0,0.00048219,120]
[354710730,1740636213267,-643.03,0.00048219,120]
[354710731,1740636213292,-1352.19,0.00048219,120]
[354710732,1740636213317,-2747.08,0.00048219,120]
[354710733,1740636213344,-500.0,0.00048219,120]
[354710734,1740636213371,-500.0,0.00048219,120]
[354710735,1740636213398,-823.35,0.00048219,120]
[354710736,1740636213425,-500.0,0.00048219,120]
[354710737,1740636213708,-2207.18,0.00048219,120]
[354710738,1740636213737,-1105.97,0.00048219,120]
[354710739,1740636213764,-87028.47,0.00048219,7]
[354710740,1740636213791,-500.0,0.00048219,120]
[354710741,1740636213820,-3729.66,0.00048219,120]
[354710742,1740636213846,-3624.9,0.00048219,120]
[354710743,1740636213873,-1177.15,0.00048219,120]
[354710744,1740636213899,-1736.82,0.00048219,120]
[354710745,1740636213926,-500.0,0.00048219,120]
[354710746,1740636213952,-500.0,0.00048219,120]
[354710747,1740636213978,-1000.0,0.00048219,2]
[354710748,1740636214004,-2175.67,0.00048219,120]
[354710749,1740636214030,-1686.22,0.00048219,120]
[354710750,1740636214056,-376.99731489,0.00048219,120]
[354710751,1740636214083,-500.0,0.00048219,120]
[354710752,1740636214109,-696.41,0.00048219,120]
[354710753,1740636214135,-1140.19,0.00048219,120]
[354710754,1740636214168,-500.0,0.00048219,120]
[354710755,1740636214199,-1492.29,0.00048219,120]
[354710756,1740636214225,-500.0,0.00048219,120]
[354710757,1740636214252,-1489.35,0.00048219,120]
[354710758,1740636214278,-500.0,0.00048219,120]
[354710759,1740636214306,-500.0,0.00048219,120]
[354710760,1740636214333,-2219.96,0.00048219,120]
[354710761,1740636214360,-1570.19,0.00048219,120]
[354710762,1740636214386,-900.11,0.00048219,120]
[354710763,1740636214413,-500.0,0.00048219,120]
[354710764,1740636214440,-922.53,0.00048219,120]
[354710765,1740636214466,-1111.66,0.00048219,120]
[354710766,1740636214495,-500.0,0.00048219,120]
[354710767,1740636214520,-500.0,0.00048219,120]
[354710768,1740636214547,-849.46,0.00048219,120]
[354710769,1740636214574,-671.48,0.00048219,120]
[354710770,1740636214600,-1788.26,0.00048219,120]
[354710771,1740636214626,-500.0,0.00048219,120]
[354710772,1740636214652,-500.0,0.00048219,120]
[354710773,1740636214679,-500.0,0.00048219,120]
[354710774,1740636214705,-5098.08,0.00048219,120]
[354710775,1740636214735,-500.0,0.00048219,120]
[354710776,1740636214762,-392.4501506,0.00048219,120]
[354710777,1740636214787,-1129.98,0.00048219,120]
[354710778,1740636214814,-509.97,0.00048219,120]
[354710779,1740636214840,-500.0,0.00048219,120]
[354710780,1740636214867,-500.0,0.00048219,120]
[354710781,1740636214894,-500.0,0.00048219,120]
[354710782,1740636214920,-2188.52,0.00048219,120]
[354710783,1740636214947,-1025.05,0.00048219,120]
[354710784,1740636214972,-1818.02,0.00048219,120]
[354710785,1740636214999,-771.48,0.00048219,120]
[354710786,1740636215025,-500.0,0.00048219,120]
[354710787,1740636215051,-1960.61,0.00048219,120]
[354710788,1740636215080,-22776.55,0.00048219,120]
[354710789,1740636215108,-500.0,0.00048219,120]
[354710790,1740636215135,-500.0,0.00048219,120]
[354710791,1740636215162,-703.02,0.00048219,120]
[354710792,1740636215191,-14815.95,0.00048219,6]
[354710793,1740636215218,-500.0,0.00048219,120]
[354710794,1740636215243,-500.0,0.00048219,120]
[354710795,1740636215268,-1476.81,0.00048219,120]
[354710796,1740636215294,-2343.39,0.00048219,120]
[354710797,1740636215319,-500.0,0.00048219,120]
[354710798,1740636215344,-500.0,0.00048219,120]
[354710799,1740636215375,-637.29,0.00048219,120]
[354710800,1740636215402,-1335.27,0.00048219,120]
[354710801,1740636215430,-4042.52,0.00048219,120]
[354710802,1740636215455,-2374.01,0.00048219,120]
[354710803,1740636215484,-500.0,0.00048219,120]
[354710804,1740636215508,-500.0,0.00048219,120]
[354710805,1740636215533,-500.0,0.00048219,120]
[354710806,1740636215558,-816.89,0.00048219,120]
[354710807,1740636215584,-644.91,0.00048219,120]
[354710808,1740636215610,-6398.07,0.00048219,120]
[354710809,1740636215636,-1274.38,0.00048219,120]
[354710810,1740636215662,-940.5,0.00048219,120]
[354710811,1740636215689,-500.0,0.00048219,120]
[354710812,1740636215716,-2375.14,0.00048219,120]
[354710813,1740636215741,-1000.0,0.000484,56]
[354710814,1740636215766,-500.0,0.00048493,120]
[354710815,1740636215791,-500.0,0.00048493,120]
[354710816,1740636215819,-500.0,0.00048493,120]
[354710817,1740636215844,-802.97,0.00048493,120]
[354710818,1740636215870,-500.0,0.00048493,120]
[354710819,1740636215896,-500.0,0.00048493,120]
[354710820,1740636215923,-500.0,0.00048493,120]
[354710821,1740636215948,-779.63,0.00048493,120]
[354710822,1740636215974,-500.0,0.00048493,120]
[354710823,1740636216000,-623.31,0.00048493,120]
[354710824,1740636216025,-500.0,0.00048493,120]
[354710825,1740636216052,-500.0,0.00048493,120]
[354710826,1740636216077,-500.0,0.00048493,120]
[354710827,1740636216103,-500.0,0.00048493,120]
[354710828,1740636216142,-500.0,0.00048493,120]
[354710829,1740636216175,-500.0,0.00048493,120]
[354710830,1740636216203,-650.57,0.00048493,120]
[354710831,1740636216229,-500.0,0.00048493,120]
[354710832,1740636216256,-500.0,0.00048493,120]
[354710833,1740636216284,-500.0,0.00048493,120]
[354710834,1740636216310,-151.0,0.00048493,120]
[354710835,1740636216337,-772.06,0.00048493,120]
[354710836,1740636216364,-840.54,0.00048493,120]
[354710837,1740636216392,-500.0,0.00048493,120]
[354710838,1740636216418,-500.0,0.00048493,120]
[354710839,1740636216446,-803.97,0.00048493,120]
[354710840,1740636216473,-151.0,0.00048493,120]
[354710841,1740636216503,-931.48,0.00048493,120]
[354710842,1740636216530,-500.0,0.00048493,120]
[354710843,1740636216556,-151.0,0.00048493,120]
[354710844,1740636216582,-1504.92,0.00048493,120]
[354710845,1740636216608,-532.87,0.00048493,120]
[354710846,1740636216635,-500.0,0.00048493,120]
[354710847,1740636216661,-500.0,0.00048493,120]
[354710848,1740636216687,-1386.51,0.00048493,120]
[354710849,1740636216712,-669.61,0.00048493,120]
[354710850,1740636216737,-500.0,0.00048493,120]
[354710851,1740636216763,-1128.4,0.00048493,120]
[354710852,1740636216788,-500.0,0.00048493,120]
[354710853,1740636216816,-500.0,0.00048493,120]
[354710854,1740636216842,-378.569983,0.00048493,120]
[354710855,1740636216868,-500.0,0.00048493,120]
[354710856,1740636216893,-501.0,0.00048493,120]
[354710857,1740636216924,-500.0,0.00048493,120]
[354710858,1740636216950,-500.0,0.00048493,120]
[354710859,1740636216976,-151.0,0.00048493,120]
[354710860,1740636217003,-151.0,0.00048493,120]
[354710861,1740636217028,-500.0,0.00048493,120]
[354710862,1740636217054,-735.02,0.00048493,120]
[354710863,1740636217086,-839.98,0.00048493,120]
[354710864,1740636217329,-625.57,0.00048493,120]
[354710865,1740636217357,-500.0,0.00048493,120]
[354710866,1740636217383,-500.0,0.00048493,120]
[354710867,1740636217408,-500.0,0.00048493,120]
[354710868,1740636217434,-1634.44,0.00048493,120]
[354710869,1740636217459,-744.24,0.00048493,120]
[354710870,1740636217484,-500.0,0.00048493,120]
[354710871,1740636217512,-560.63,0.00048493,120]
[354710872,1740636217537,-500.0,0.00048493,120]
[354710873,1740636217563,-500.0,0.00048493,120]
[354710874,1740636217588,-500.0,0.00048493,120]
[354710875,1740636217612,-500.0,0.00048493,120]
[354710876,1740636217637,-664.66,0.00048493,120]
[354710877,1740636217663,-500.0,0.00048493,120]
[354710878,1740636217690,-500.0,0.00048493,120]
[354710879,1740636217715,-500.0,0.00048493,120]
[354710880,1740636217740,-795.34,0.00048493,120]
[354710881,1740636217764,-736.94,0.00048493,120]
[354710882,1740636217789,-500.0,0.00048493,120]
[354710883,1740636217817,-500.0,0.00048493,120]
[354710884,1740636217843,-669.38,0.00048493,120]
[354710885,1740636217868,-500.0,0.00048493,120]
[354710886,1740636217894,-200.06056557,0.00048493,30]
[354710887,1740636217919,-884.52,0.00048493,120]
[354710888,1740636217944,-529.97,0.00048493,120]
[354710889,1740636217969,-500.0,0.00048493,120]
[354710890,1740636217994,-380.12857343,0.00048493,120]
[354710891,1740636218019,-500.0,0.00048493,120]
[354710892,1740636218045,-10140.7,0.00048493,120]
[354710893,1740636218070,-4573.11,0.00048493,120]
[354710894,1740636218094,-500.0,0.00048493,120]
[354710895,1740636218119,-606.81,0.00048493,120]
[354710896,1740636218144,-500.0,0.00048493,120]
[354710897,1740636218170,-500.0,0.00048493,120]
[354710898,1740636218197,-500.0,0.00048493,120]
[354710899,1740636218223,-620.68,0.00048493,120]
[354710900,1740636218248,-1356.3,0.00048493,120]
[354710901,1740636218274,-916.41,0.00048493,120]
[354710902,1740636218300,-500.0,0.00048493,120]
[354710903,1740636218326,-17931.29,0.00048493,120]
[354710904,1740636218352,-2325.02,0.00048493,120]
[354710905,1740636218378,-630.48,0.00048493,120]
[354710906,1740636218403,-500.0,0.00048493,120]
[354710907,1740636218428,-500.0,0.00048493,120]
[354710908,1740636218455,-232.149007,0.00048493,120]
[354710909,1740636218484,-1077.0,0.00048493,120]
[354710910,1740636218515,-232.149007,0.00048493,120]
[354710911,1740636218541,-6061.14,0.00048493,120]
[354710912,1740636218567,-863.16,0.00048493,120]
[354710913,1740636218592,-500.0,0.00048493,120]
[354710914,1740636218617,-1361.05,0.00048493,120]
[354710915,1740636218643,-500.0,0.00048493,30]
[354710916,1740636218668,-2772.83,0.00048493,120]
[354710917,1740636218696,-511.74,0.00048493,120]
[354710918,1740636218720,-1545.0,0.00048493,30]
[354710919,1740636218744,-500.0,0.00048493,120]
[354710920,1740636218768,-500.0,0.00048493,30]
[354710921,1740636218793,-160.77404668,0.00048493,30]
[354710922,1740636218818,-220.33228567,0.00048493,30]
[354710923,1740636218843,-7424.48,0.00048493,3]
[354710924,1740636218868,-799.62,0.00048493,120]
[354710925,1740636218894,-150.98889483,0.00048493,30]
[354710926,1740636218918,-500.0,0.00048493,120]
[354710927,1740636218944,-643.03,0.00048493,120]
[354710928,1740636218968,-1352.19,0.00048493,120]
[354710929,1740636218993,-2747.08,0.00048493,120]
[354710930,1740636219020,-500.0,0.00048493,120]
[354710931,1740636219047,-500.0,0.00048493,120]
[354710932,1740636219072,-823.35,0.00048493,120]
[354710933,1740636219097,-500.0,0.00048493,120]
[354710934,1740636219122,-2207.18,0.00048493,120]
[354710935,1740636219147,-1105.97,0.00048493,120]
[354710936,1740636219173,-87028.47,0.00048493,7]
[354710937,1740636219199,-500.0,0.00048493,120]
[354710938,1740636219226,-3729.66,0.00048493,120]
[354710939,1740636219253,-3624.9,0.00048493,120]
[354710940,1740636219278,-1177.15,0.00048493,120]
[354710941,1740636219303,-1736.82,0.00048493,120]
[354710942,1740636219328,-358.29797238,0.00048493,120]
[354710943,1740636219354,-500.0,0.00048493,120]
[354710944,1740636219379,-511.49699234,0.00048493,2]
[354710945,1740636219404,-2175.67,0.00048493,120]
[354710946,1740636219432,-1686.22,0.00048493,120]
[354710947,1740636219458,-500.0,0.00048493,120]
[354710948,1740636219484,-696.41,0.00048493,120]
[354710949,1740636219513,-1140.19,0.00048493,120]
[354710950,1740636219539,-500.0,0.00048493,120]
[354710951,1740636219565,-1492.29,0.00048493,120]
[354710952,1740636219591,-500.0,0.00048493,120]
[354710953,1740636219616,-1489.35,0.00048493,120]
[354710954,1740636219641,-500.0,0.00048493,120]
[354710955,1740636219666,-500.0,0.00048493,120]
[354710956,1740636219692,-2219.96,0.00048493,120]
[354710957,1740636219718,-1570.19,0.00048493,120]
[354710958,1740636219743,-900.11,0.00048493,120]
[354710959,1740636219767,-500.0,0.00048493,120]
[354710960,1740636219792,-922.53,0.00048493,120]
[354710961,1740636219819,-1111.66,0.00048493,120]
[354710962,1740636219845,-500.0,0.00048493,120]
[354710963,1740636219871,-500.0,0.00048493,120]
[354710964,1740636219896,-849.46,0.00048493,120]
[354710965,1740636219920,-671.48,0.00048493,120]
[354710966,1740636219946,-1788.26,0.00048493,120]
[354710967,1740636219971,-500.0,0.00048493,120]
[354710968,1740636219995,-500.0,0.00048493,120]
[354710969,1740636220021,-500.0,0.00048493,120]
[354710970,1740636220046,-5098.08,0.00048493,120]
[354710971,1740636220071,-500.0,0.00048493,120]
[354710972,1740636220096,-150.81385299,0.00048493,30]
[354710973,1740636220121,-500.0,0.00048493,30]
[354710974,1740636220146,-1129.98,0.00048493,120]
[354710975,1740636220171,-500.0,0.00048493,30]
[354710976,1740636220198,-509.97,0.00048493,120]
[354710977,1740636220223,-150.36,0.00048493,2]
[354710978,1740636220247,-500.0,0.00048493,120]
[354710979,1740636220271,-150.36,0.00048493,30]
[354710980,1740636220298,-500.0,0.00048493,120]
[354710981,1740636220322,-500.0,0.00048493,120]
[354710982,1740636220348,-2188.52,0.00048493,120]
[354710983,1740636220374,-1025.05,0.00048493,120]
[354710984,1740636220399,-1818.02,0.00048493,120]
[354710985,1740636220423,-771.48,0.00048493,120]
[354710986,1740636220574,-500.0,0.00048493,120]
[354710987,1740636220605,-1960.61,0.00048493,120]
[354710988,1740636220632,-8626.82984267,0.00048493,120]
[354711079,1740636632158,-156.29837775,0.00046475,120]
[354711081,1740636632168,-290.91204626,0.00046475,120]
[354711083,1740636632178,-400.0,0.00046573,5]
[354711085,1740636632187,-500.0,0.00046574,120]
[354711086,1740636632196,-500.0,0.00046574,120]
[354711088,1740636632205,-426.48,0.00046574,120]
[354711090,1740636632215,-500.0,0.00046574,2]
[354711092,1740636632224,-152.40806877,0.00046574,31]
[354711094,1740636632233,-500.0,0.00046574,120]
[354711096,1740636632243,-500.0,0.00046574,120]
[354711098,1740636632252,-374.74809679,0.00046574,2]
[354711100,1740636632262,-500.0,0.00046574,120]
[354711102,1740636632272,-412.833142,0.00046574,120]
[354711104,1740636632282,-500.0,0.00046574,120]
[354711106,1740636632291,-500.0,0.00046574,120]
[354711108,1740636632301,-314.52270177,0.00046574,120]
[354711110,1740636632310,-2078.38094714,0.00046574,120]
[354711175,1740636637945,-14774.34905286,0.00046574,120]
[354711176,1740636637966,-500.0,0.00046575,120]
[354711177,1740636637978,-500.0,0.00046575,120]
[354711178,1740636637989,-500.0,0.00046575,120]
[354711179,1740636637999,-500.0,0.00046575,15]
[354711180,1740636638009,-500.0,0.00046575,120]
[354711181,1740636638019,-555.96,0.00046575,120]
[354711182,1740636638031,-500.0,0.00046575,120]
[354711183,1740636638041,-500.0,0.00046575,120]
[354711184,1740636638052,-500.0,0.00046575,120]
[354711185,1740636638064,-500.0,0.00046575,120]
[354711186,1740636638073,-1003.28,0.00046575,120]
[354711187,1740636638083,-500.0,0.00046575,120]
[354711188,1740636638093,-519.75,0.00046575,120]
[354711189,1740636638103,-607.36,0.00046575,120]
[354711190,1740636638112,-500.0,0.00046575,120]
[354711191,1740636638122,-500.0,0.00046575,120]
[354711192,1740636638132,-216.22086362,0.00046575,120]
[354711193,1740636638142,-500.0,0.00046575,120]
[354711194,1740636638151,-500.0,0.00046575,120]
[354711195,1740636638161,-500.0,0.00046575,120]
[354711196,1740636638171,-500.0,0.00046575,120]
[354711197,1740636638181,-500.0,0.00046575,120]
[354711198,1740636638191,-617.84849593,0.00046575,120]
[354711199,1740636638201,-500.0,0.00046575,120]
[354711200,1740636638211,-500.0,0.00046575,120]
[354711201,1740636638220,-500.0,0.00046575,120]
[354711202,1740636638230,-500.0,0.00046575,120]
[354711203,1740636638240,-500.0,0.00046575,120]
[354711204,1740636638249,-1089.63,0.00046575,120]
[354711205,1740636638260,-500.0,0.00046575,120]
[354711206,1740636638270,-500.0,0.00046575,120]
[354711207,1740636638280,-500.0,0.00046575,120]
[354711208,1740636638291,-500.0,0.00046575,120]
[354711209,1740636638300,-500.0,0.00046575,120]
[354711210,1740636638310,-500.0,0.00046575,120]
[354711211,1740636638320,-500.0,0.00046575,120]
[354711212,1740636638329,-500.0,0.00046575,120]
[354711213,1740636638339,-220.98884203,0.00046575,120]
[354711214,1740636638348,-500.0,0.00046575,120]
[354711215,1740636638358,-500.0,0.00046575,120]
[354711216,1740636638368,-520.12453513,0.00046575,120]
[354711217,1740636638378,-500.0,0.00046575,120]
[354711218,1740636638388,-4040.76,0.00046575,120]
[354711219,1740636638397,-181.85589958,0.00046575,120]
[354711220,1740636638407,-500.0,0.00046575,120]
[354711221,1740636638417,-500.0,0.00046575,120]
[354711222,1740636638427,-500.0,0.00046575,120]
[354711223,1740636638436,-500.0,0.00046575,120]
[354711224,1740636638446,-500.0,0.00046575,120]
[354711225,1740636638456,-532.01,0.00046575,120]
[354711226,1740636638467,-500.0,0.00046575,120]
[354711227,1740636638477,-500.0,0.00046575,120]
[354711228,1740636638487,-500.0,0.00046575,120]
[354711229,1740636638497,-500.0,0.00046575,120]
[354711230,1740636638507,-500.0,0.00046575,120]
[354711231,1740636638516,-901.46,0.00046575,120]
[354711232,1740636638526,-500.0,0.00046575,120]
[354711233,1740636638536,-500.0,0.00046575,120]
[354711234,1740636638546,-180.71908604,0.00046575,120]
[354711235,1740636638555,-500.0,0.00046575,120]
[354711236,1740636638565,-500.0,0.00046575,120]
[354711237,1740636638574,-58018.98,0.00046575,7]
[354711238,1740636638587,-500.0,0.00046575,120]
[354711239,1740636638597,-500.0,0.00046575,120]
[354711240,1740636638606,-500.0,0.00046575,120]
[354711241,1740636638616,-1157.88,0.00046575,120]
[354711242,1740636638629,-500.0,0.00046575,120]
[354711243,1740636638638,-500.0,0.00046575,120]
[354711244,1740636638648,-500.0,0.00046575,120]
[354711245,1740636638659,-589.68,0.00046575,120]
[354711246,1740636638668,-994.86,0.00046575,120]
[354711247,1740636638678,-904.2,0.00046575,120]
[354711248,1740636638687,-3048.74,0.00046575,120]
[354711249,1740636638698,-600.08,0.00046575,120]
[354711250,1740636638708,-500.0,0.00046575,120]
[354711251,1740636638718,-500.0,0.00046575,120]
[354711252,1740636638727,-11954.2,0.00046575,120]
[354711253,1740636638737,-500.0,0.00046575,120]
[354711254,1740636638746,-500.0,0.00046575,120]
[354711255,1740636638756,-500.0,0.00046575,120]
[354711256,1740636638766,-500.0,0.00046575,120]
[354711257,1740636638775,-500.0,0.00046575,120]
[354711258,1740636638786,-647.79059907,0.00046575,120]
[354711259,1740636638796,-500.0,0.00046575,120]
[354711260,1740636638805,-500.0,0.00046575,120]
[354711261,1740636638815,-907.36,0.00046575,120]
[354711262,1740636638825,-1550.01,0.00046575,120]
[354711263,1740636638835,-500.0,0.00046575,120]
[354711264,1740636638844,-500.0,0.00046575,120]
[354711265,1740636638853,-500.0,0.00046575,120]
[354711266,1740636638863,-500.0,0.00046575,120]
[354711267,1740636638872,-575.44,0.00046575,120]
[354711268,1740636638881,-500.0,0.00046575,120]
[354711269,1740636638891,-553.69743673,0.00046575,120]
[354711270,1740636638901,-500.0,0.00046575,120]
[354711271,1740636638910,-531.14,0.00046575,120]
[354711272,1740636638920,-1848.55,0.00046575,120]
[354711273,1740636638929,-500.0,0.00046575,120]
[354711274,1740636638939,-500.0,0.00046575,30]
[354711275,1740636638948,-5425.38,0.00046575,3]
[354711276,1740636638958,-500.0,0.00046575,120]
[354711277,1740636638967,-533.08,0.00046575,120]
[354711278,1740636638977,-500.0,0.00046575,120]
[354711279,1740636638986,-500.0,0.00046575,120]
[354711280,1740636638995,-500.0,0.00046575,120]
[354711281,1740636639005,-500.0,0.00046575,120]
[354711282,1740636639014,-1888.18,0.00046575,120]
[354711283,1740636639023,-500.0,0.00046575,120]
[354711284,1740636639034,-500.0,0.00046575,120]
[354711285,1740636639043,-500.0,0.00046575,120]
[354711286,1740636639053,-500.0,0.00046575,120]
[354711287,1740636639062,-610.94,0.00046575,120]
[354711288,1740636639072,-500.0,0.00046575,120]